{"text_format":"3","workbook":"xlsx","n_sheets":4,"sheets":["OBJECTIFS","RÉGIME ALIMENTAIRE","EXERCICE","Calculs du graphique"],"not_rendered":{"charts":2,"defined_names":19},"read":"whole","date_system":"1900"}

{"sheet":"OBJECTIFS","index":0,"n_rows":16,"n_cols":11,"rows_kept":16,"merged":[[2,1,3,1],[7,1,8,1]]}
[null,{"$f":"TODAY()","v":"2017-05-09"},"OBJECTIFS",{"$nulls":6},"Exercices","Régime alimentaire"]
[null,"DATE DE DÉBUT","JOURNAL DE RÉGIME ALIMENTAIRE ET D’EXERCICE"]
[null,{"$f":"DateDébut+121","v":"2017-09-07"},"ANALYSE DIÉTÉTIQUE"]
[]
[null,"DATE DE FIN"]
[null,{"v":100,"d":"100.00"}]
[null,"POIDS INITIAL"]
[null,{"v":80,"d":"80.00"},"ANALYSE DES EXERCICES"]
[]
[null,"POIDS FINAL"]
[null,{"$f":"PoindsIntitial-PoidsFinal","v":20}]
[null,"OBJECTIF DE PERTE"]
[null,{"$f":"DateFin-DateDébut","v":121}]
[null,"JOURS POUR LA PERTE"]
[null,{"$f":"ObjectifPoids/B13","v":{"v":0.1652892561983471,"d":"0.17"}}]
[null,"PERTE PAR JOUR"]

{"sheet":"RÉGIME ALIMENTAIRE","index":1,"n_rows":19,"n_cols":9,"rows_kept":19}
[null,"RÉGIME ALIMENTAIRE",{"$nulls":4},"Objectifs","Exercices"]
[null,{"$f":"Sous_titre","v":"JOURNAL DE RÉGIME ALIMENTAIRE ET D’EXERCICE"}]
[null,"DATE","HEURE","DESCRIPTION","CALORIES","GLUCIDES","PROTÉINES","LIPIDES","NOTES"]
[null,{"$f":"DateDébut","v":"2017-05-09"},"07:00:00","Café",1,0,0,0,"Café du matin"]
[null,{"$f":"DateDébut","v":"2017-05-09"},"08:00:00","Bagel",10,10,2,10,"Petit-déjeuner léger"]
[null,{"$f":"DateDébut","v":"2017-05-09"},"12:00:00","Déjeuner",283,46,18,{"v":3.5,"d":"4"},"Sandwich dinde"]
[null,{"$f":"DateDébut","v":"2017-05-09"},"19:00:00","Dîner",500,42,35,25,"Croquettes de pomme de terre frites"]
[null,{"$f":"DateDébut+1","v":"2017-05-10"},"07:00:00","Café",1,0,0,0,"Café du matin"]
[null,{"$f":"DateDébut+1","v":"2017-05-10"},"08:00:00","Toast",10,10,2,10,"Petit-déjeuner léger"]
[null,{"$f":"DateDébut+1","v":"2017-05-10"},"12:00:00","Déjeuner",189,26,3,8,"Sandwich"]
[null,{"$f":"DateDébut+1","v":"2017-05-10"},"19:00:00","Dîner",477,62,{"v":13.5,"d":"14"},21,"Dîner"]
[null,{"$f":"DateDébut+2","v":"2017-05-11"},"07:00:00","Café",1,0,0,0,"Café du matin"]
[null,{"$f":"DateDébut+2","v":"2017-05-11"},"08:00:00","Bagel",245,48,10,{"v":1.5,"d":"2"},"Petit-déjeuner léger"]
[null,{"$f":"DateDébut+2","v":"2017-05-11"},"12:00:00","Déjeuner",247,11,43,5,"Salade"]
[null,{"$f":"DateDébut+2","v":"2017-05-11"},"19:00:00","Dîner",456,64,32,22,"Dîner"]
[null,{"$f":"DateDébut+3","v":"2017-05-12"},"07:00:00","Toast",10,10,2,10,"Petit-déjeuner léger"]
[null,{"$f":"DateDébut+3","v":"2017-05-12"},"10:00:00","Café",135,{"v":12.36,"d":"12"},{"v":8.81,"d":"9"},{"v":5.51,"d":"6"},"Café Latte"]
[null,{"$f":"DateDébut+3","v":"2017-05-12"},"12:15:00","Déjeuner",184,7,{"v":5.43,"d":"5"},15,"Salade"]
[null,{"$f":"DateDébut+5","v":"2017-05-14"},"19:00:00","Dîner",477,62,{"v":13.5,"d":"14"},21,"Dîner"]

{"sheet":"EXERCICE","index":2,"n_rows":20,"n_cols":7,"rows_kept":20}
[null,"EXERCICE",{"$nulls":3},"Régime alimentaire","Objectifs"]
[null,{"$f":"Sous_titre","v":"JOURNAL DE RÉGIME ALIMENTAIRE ET D’EXERCICE"}]
[null,"DATE","DURÉE (MINUTES)","CALORIES BRÛLÉES","NOTES"]
[null,{"$f":"DateDébut+4","v":"2017-05-13"},30,120,"Entraînement sur tapis de course"]
[null,{"$f":"B4+1","v":"2017-05-14"},60,180,"Danse aérobique sans sauts"]
[null,{"$f":"B5+1","v":"2017-05-15"},60,350,"Entraînement extrême"]
[null,"2017-05-16",30,150,"Entraînement sur tapis de course"]
[null,"2017-05-17",25,125,"Course"]
[null,"2017-05-18",20,285,"Entraînement sur tapis de course"]
[null,"2017-05-19",40,205,"Course"]
[null,"2017-05-20",30,335,"Course"]
[null,"2017-05-21",40,175,"Course"]
[null,"2017-05-22",45,325,"Entraînement sur tapis de course"]
[null,"2017-05-23",40,270,"Course"]
[null,"2017-05-24",20,295,"Entraînement sur tapis de course"]
[null,"2017-05-25",45,350,"Course"]
[null,"2017-05-26",35,320,"Course"]
[null,"2017-05-27",40,290,"Course"]
[null,{"$f":"B18+1","v":"2017-05-28"},25,265,"Entraînement sur tapis de course"]
[null,"2017-05-29",20,195,"Course"]

{"sheet":"Calculs du graphique","index":3,"n_rows":36,"n_cols":10,"rows_kept":36,"hidden":true,"merged":[[1,1,1,9],[19,1,19,9]]}
[]
[null,"DONNÉES DU GRAPHIQUE D’ANALYSE DIÉTÉTIQUE"]
[]
[null,"Ligne de début",{"$f":"ROW(Régime_alimentaire[[#Headers],[DATE]])+1","v":4},"DATE","JOUR","LIPIDES","PROTÉINES","GLUCIDES","CALORIES","Nombre"]
[null,"Dernière entrée du régime alimentaire",{"$f":"MATCH(9.99E+307,Régime_alimentaire[DATE])+DébutLigneRégime-1","v":19},{"$f":"IFERROR(IF(INDEX(Régime_alimentaire[],FinRégime-DébutLigneRégime-J5,1)<>\"\",INDEX(Régime_alimentaire[],FinRégime-DébutLigneRégime-J5,1),\"\"),\"\")","v":"2017-05-09"},{"$f":"UPPER(TEXT(D5,\"jjj\"))","v":"MAR"},{"$f":"IFERROR((IF(INDEX(Régime_alimentaire[],FinRégime-DébutLigneRégime-J5,1)<>\"\",INDEX(Régime_alimentaire[],FinRégime-DébutLigneRégime-J5,7),NA())),NA())","v":3.5},{"$f":"IFERROR((IF(INDEX(Régime_alimentaire[],FinRégime-DébutLigneRégime-J5,1)<>\"\",INDEX(Régime_alimentaire[],FinRégime-DébutLigneRégime-J5,6),NA())),NA())","v":18},{"$f":"IFERROR((IF(INDEX(Régime_alimentaire[],FinRégime-DébutLigneRégime-J5,1)<>\"\",INDEX(Régime_alimentaire[],FinRégime-DébutLigneRégime-J5,5),NA())),NA())","v":46},{"$f":"IFERROR((IF(INDEX(Régime_alimentaire[],FinRégime-DébutLigneRégime-J5,1)<>\"\",INDEX(Régime_alimentaire[],FinRégime-DébutLigneRégime-J5,4),NA())),NA())","v":283},12]
[{"$nulls":3},{"$f":"IFERROR(IF(INDEX(Régime_alimentaire[],FinRégime-DébutLigneRégime-J6,1)<>\"\",INDEX(Régime_alimentaire[],FinRégime-DébutLigneRégime-J6,1),\"\"),\"\")","v":"2017-05-09"},{"$f":"UPPER(TEXT(D6,\"jjj\"))","v":"MAR"},{"$f":"IFERROR((IF(INDEX(Régime_alimentaire[],FinRégime-DébutLigneRégime-J6,1)<>\"\",INDEX(Régime_alimentaire[],FinRégime-DébutLigneRégime-J6,7),NA())),NA())","v":25},{"$f":"IFERROR((IF(INDEX(Régime_alimentaire[],FinRégime-DébutLigneRégime-J6,1)<>\"\",INDEX(Régime_alimentaire[],FinRégime-DébutLigneRégime-J6,6),NA())),NA())","v":35},{"$f":"IFERROR((IF(INDEX(Régime_alimentaire[],FinRégime-DébutLigneRégime-J6,1)<>\"\",INDEX(Régime_alimentaire[],FinRégime-DébutLigneRégime-J6,5),NA())),NA())","v":42},{"$f":"IFERROR((IF(INDEX(Régime_alimentaire[],FinRégime-DébutLigneRégime-J6,1)<>\"\",INDEX(Régime_alimentaire[],FinRégime-DébutLigneRégime-J6,4),NA())),NA())","v":500},11]
[{"$nulls":3},{"$f":"IFERROR(IF(INDEX(Régime_alimentaire[],FinRégime-DébutLigneRégime-J7,1)<>\"\",INDEX(Régime_alimentaire[],FinRégime-DébutLigneRégime-J7,1),\"\"),\"\")","v":"2017-05-10"},"MER",{"$f":"IFERROR((IF(INDEX(Régime_alimentaire[],FinRégime-DébutLigneRégime-J7,1)<>\"\",INDEX(Régime_alimentaire[],FinRégime-DébutLigneRégime-J7,7),NA())),NA())","v":0},{"$f":"IFERROR((IF(INDEX(Régime_alimentaire[],FinRégime-DébutLigneRégime-J7,1)<>\"\",INDEX(Régime_alimentaire[],FinRégime-DébutLigneRégime-J7,6),NA())),NA())","v":0},{"$f":"IFERROR((IF(INDEX(Régime_alimentaire[],FinRégime-DébutLigneRégime-J7,1)<>\"\",INDEX(Régime_alimentaire[],FinRégime-DébutLigneRégime-J7,5),NA())),NA())","v":0},{"$f":"IFERROR((IF(INDEX(Régime_alimentaire[],FinRégime-DébutLigneRégime-J7,1)<>\"\",INDEX(Régime_alimentaire[],FinRégime-DébutLigneRégime-J7,4),NA())),NA())","v":1},10]
[{"$nulls":3},{"$f":"IFERROR(IF(INDEX(Régime_alimentaire[],FinRégime-DébutLigneRégime-J8,1)<>\"\",INDEX(Régime_alimentaire[],FinRégime-DébutLigneRégime-J8,1),\"\"),\"\")","v":"2017-05-10"},"MER",{"$f":"IFERROR((IF(INDEX(Régime_alimentaire[],FinRégime-DébutLigneRégime-J8,1)<>\"\",INDEX(Régime_alimentaire[],FinRégime-DébutLigneRégime-J8,7),NA())),NA())","v":10},{"$f":"IFERROR((IF(INDEX(Régime_alimentaire[],FinRégime-DébutLigneRégime-J8,1)<>\"\",INDEX(Régime_alimentaire[],FinRégime-DébutLigneRégime-J8,6),NA())),NA())","v":2},{"$f":"IFERROR((IF(INDEX(Régime_alimentaire[],FinRégime-DébutLigneRégime-J8,1)<>\"\",INDEX(Régime_alimentaire[],FinRégime-DébutLigneRégime-J8,5),NA())),NA())","v":10},{"$f":"IFERROR((IF(INDEX(Régime_alimentaire[],FinRégime-DébutLigneRégime-J8,1)<>\"\",INDEX(Régime_alimentaire[],FinRégime-DébutLigneRégime-J8,4),NA())),NA())","v":10},9]
[{"$nulls":3},{"$f":"IFERROR(IF(INDEX(Régime_alimentaire[],FinRégime-DébutLigneRégime-J9,1)<>\"\",INDEX(Régime_alimentaire[],FinRégime-DébutLigneRégime-J9,1),\"\"),\"\")","v":"2017-05-10"},"MER",{"$f":"IFERROR((IF(INDEX(Régime_alimentaire[],FinRégime-DébutLigneRégime-J9,1)<>\"\",INDEX(Régime_alimentaire[],FinRégime-DébutLigneRégime-J9,7),NA())),NA())","v":8},{"$f":"IFERROR((IF(INDEX(Régime_alimentaire[],FinRégime-DébutLigneRégime-J9,1)<>\"\",INDEX(Régime_alimentaire[],FinRégime-DébutLigneRégime-J9,6),NA())),NA())","v":3},{"$f":"IFERROR((IF(INDEX(Régime_alimentaire[],FinRégime-DébutLigneRégime-J9,1)<>\"\",INDEX(Régime_alimentaire[],FinRégime-DébutLigneRégime-J9,5),NA())),NA())","v":26},{"$f":"IFERROR((IF(INDEX(Régime_alimentaire[],FinRégime-DébutLigneRégime-J9,1)<>\"\",INDEX(Régime_alimentaire[],FinRégime-DébutLigneRégime-J9,4),NA())),NA())","v":189},8]
[{"$nulls":3},{"$f":"IFERROR(IF(INDEX(Régime_alimentaire[],FinRégime-DébutLigneRégime-J10,1)<>\"\",INDEX(Régime_alimentaire[],FinRégime-DébutLigneRégime-J10,1),\"\"),\"\")","v":"2017-05-10"},"MER",{"$f":"IFERROR((IF(INDEX(Régime_alimentaire[],FinRégime-DébutLigneRégime-J10,1)<>\"\",INDEX(Régime_alimentaire[],FinRégime-DébutLigneRégime-J10,7),NA())),NA())","v":21},{"$f":"IFERROR((IF(INDEX(Régime_alimentaire[],FinRégime-DébutLigneRégime-J10,1)<>\"\",INDEX(Régime_alimentaire[],FinRégime-DébutLigneRégime-J10,6),NA())),NA())","v":13.5},{"$f":"IFERROR((IF(INDEX(Régime_alimentaire[],FinRégime-DébutLigneRégime-J10,1)<>\"\",INDEX(Régime_alimentaire[],FinRégime-DébutLigneRégime-J10,5),NA())),NA())","v":62},{"$f":"IFERROR((IF(INDEX(Régime_alimentaire[],FinRégime-DébutLigneRégime-J10,1)<>\"\",INDEX(Régime_alimentaire[],FinRégime-DébutLigneRégime-J10,4),NA())),NA())","v":477},7]
[{"$nulls":3},{"$f":"IFERROR(IF(INDEX(Régime_alimentaire[],FinRégime-DébutLigneRégime-J11,1)<>\"\",INDEX(Régime_alimentaire[],FinRégime-DébutLigneRégime-J11,1),\"\"),\"\")","v":"2017-05-11"},"JEU",{"$f":"IFERROR((IF(INDEX(Régime_alimentaire[],FinRégime-DébutLigneRégime-J11,1)<>\"\",INDEX(Régime_alimentaire[],FinRégime-DébutLigneRégime-J11,7),NA())),NA())","v":0},{"$f":"IFERROR((IF(INDEX(Régime_alimentaire[],FinRégime-DébutLigneRégime-J11,1)<>\"\",INDEX(Régime_alimentaire[],FinRégime-DébutLigneRégime-J11,6),NA())),NA())","v":0},{"$f":"IFERROR((IF(INDEX(Régime_alimentaire[],FinRégime-DébutLigneRégime-J11,1)<>\"\",INDEX(Régime_alimentaire[],FinRégime-DébutLigneRégime-J11,5),NA())),NA())","v":0},{"$f":"IFERROR((IF(INDEX(Régime_alimentaire[],FinRégime-DébutLigneRégime-J11,1)<>\"\",INDEX(Régime_alimentaire[],FinRégime-DébutLigneRégime-J11,4),NA())),NA())","v":1},6]
[{"$nulls":3},{"$f":"IFERROR(IF(INDEX(Régime_alimentaire[],FinRégime-DébutLigneRégime-J12,1)<>\"\",INDEX(Régime_alimentaire[],FinRégime-DébutLigneRégime-J12,1),\"\"),\"\")","v":"2017-05-11"},"JEU",{"$f":"IFERROR((IF(INDEX(Régime_alimentaire[],FinRégime-DébutLigneRégime-J12,1)<>\"\",INDEX(Régime_alimentaire[],FinRégime-DébutLigneRégime-J12,7),NA())),NA())","v":1.5},{"$f":"IFERROR((IF(INDEX(Régime_alimentaire[],FinRégime-DébutLigneRégime-J12,1)<>\"\",INDEX(Régime_alimentaire[],FinRégime-DébutLigneRégime-J12,6),NA())),NA())","v":10},{"$f":"IFERROR((IF(INDEX(Régime_alimentaire[],FinRégime-DébutLigneRégime-J12,1)<>\"\",INDEX(Régime_alimentaire[],FinRégime-DébutLigneRégime-J12,5),NA())),NA())","v":48},{"$f":"IFERROR((IF(INDEX(Régime_alimentaire[],FinRégime-DébutLigneRégime-J12,1)<>\"\",INDEX(Régime_alimentaire[],FinRégime-DébutLigneRégime-J12,4),NA())),NA())","v":245},5]
[{"$nulls":3},{"$f":"IFERROR(IF(INDEX(Régime_alimentaire[],FinRégime-DébutLigneRégime-J13,1)<>\"\",INDEX(Régime_alimentaire[],FinRégime-DébutLigneRégime-J13,1),\"\"),\"\")","v":"2017-05-11"},"JEU",{"$f":"IFERROR((IF(INDEX(Régime_alimentaire[],FinRégime-DébutLigneRégime-J13,1)<>\"\",INDEX(Régime_alimentaire[],FinRégime-DébutLigneRégime-J13,7),NA())),NA())","v":5},{"$f":"IFERROR((IF(INDEX(Régime_alimentaire[],FinRégime-DébutLigneRégime-J13,1)<>\"\",INDEX(Régime_alimentaire[],FinRégime-DébutLigneRégime-J13,6),NA())),NA())","v":43},{"$f":"IFERROR((IF(INDEX(Régime_alimentaire[],FinRégime-DébutLigneRégime-J13,1)<>\"\",INDEX(Régime_alimentaire[],FinRégime-DébutLigneRégime-J13,5),NA())),NA())","v":11},{"$f":"IFERROR((IF(INDEX(Régime_alimentaire[],FinRégime-DébutLigneRégime-J13,1)<>\"\",INDEX(Régime_alimentaire[],FinRégime-DébutLigneRégime-J13,4),NA())),NA())","v":247},4]
[{"$nulls":3},{"$f":"IFERROR(IF(INDEX(Régime_alimentaire[],FinRégime-DébutLigneRégime-J14,1)<>\"\",INDEX(Régime_alimentaire[],FinRégime-DébutLigneRégime-J14,1),\"\"),\"\")","v":"2017-05-11"},"JEU",{"$f":"IFERROR((IF(INDEX(Régime_alimentaire[],FinRégime-DébutLigneRégime-J14,1)<>\"\",INDEX(Régime_alimentaire[],FinRégime-DébutLigneRégime-J14,7),NA())),NA())","v":22},{"$f":"IFERROR((IF(INDEX(Régime_alimentaire[],FinRégime-DébutLigneRégime-J14,1)<>\"\",INDEX(Régime_alimentaire[],FinRégime-DébutLigneRégime-J14,6),NA())),NA())","v":32},{"$f":"IFERROR((IF(INDEX(Régime_alimentaire[],FinRégime-DébutLigneRégime-J14,1)<>\"\",INDEX(Régime_alimentaire[],FinRégime-DébutLigneRégime-J14,5),NA())),NA())","v":64},{"$f":"IFERROR((IF(INDEX(Régime_alimentaire[],FinRégime-DébutLigneRégime-J14,1)<>\"\",INDEX(Régime_alimentaire[],FinRégime-DébutLigneRégime-J14,4),NA())),NA())","v":456},3]
[{"$nulls":3},{"$f":"IFERROR(IF(INDEX(Régime_alimentaire[],FinRégime-DébutLigneRégime-J15,1)<>\"\",INDEX(Régime_alimentaire[],FinRégime-DébutLigneRégime-J15,1),\"\"),\"\")","v":"2017-05-12"},"VEN",{"$f":"IFERROR((IF(INDEX(Régime_alimentaire[],FinRégime-DébutLigneRégime-J15,1)<>\"\",INDEX(Régime_alimentaire[],FinRégime-DébutLigneRégime-J15,7),NA())),NA())","v":10},{"$f":"IFERROR((IF(INDEX(Régime_alimentaire[],FinRégime-DébutLigneRégime-J15,1)<>\"\",INDEX(Régime_alimentaire[],FinRégime-DébutLigneRégime-J15,6),NA())),NA())","v":2},{"$f":"IFERROR((IF(INDEX(Régime_alimentaire[],FinRégime-DébutLigneRégime-J15,1)<>\"\",INDEX(Régime_alimentaire[],FinRégime-DébutLigneRégime-J15,5),NA())),NA())","v":10},{"$f":"IFERROR((IF(INDEX(Régime_alimentaire[],FinRégime-DébutLigneRégime-J15,1)<>\"\",INDEX(Régime_alimentaire[],FinRégime-DébutLigneRégime-J15,4),NA())),NA())","v":10},2]
[{"$nulls":3},{"$f":"IFERROR(IF(INDEX(Régime_alimentaire[],FinRégime-DébutLigneRégime-J16,1)<>\"\",INDEX(Régime_alimentaire[],FinRégime-DébutLigneRégime-J16,1),\"\"),\"\")","v":"2017-05-12"},"VEN",{"$f":"IFERROR((IF(INDEX(Régime_alimentaire[],FinRégime-DébutLigneRégime-J16,1)<>\"\",INDEX(Régime_alimentaire[],FinRégime-DébutLigneRégime-J16,7),NA())),NA())","v":5.51},{"$f":"IFERROR((IF(INDEX(Régime_alimentaire[],FinRégime-DébutLigneRégime-J16,1)<>\"\",INDEX(Régime_alimentaire[],FinRégime-DébutLigneRégime-J16,6),NA())),NA())","v":8.81},{"$f":"IFERROR((IF(INDEX(Régime_alimentaire[],FinRégime-DébutLigneRégime-J16,1)<>\"\",INDEX(Régime_alimentaire[],FinRégime-DébutLigneRégime-J16,5),NA())),NA())","v":12.36},{"$f":"IFERROR((IF(INDEX(Régime_alimentaire[],FinRégime-DébutLigneRégime-J16,1)<>\"\",INDEX(Régime_alimentaire[],FinRégime-DébutLigneRégime-J16,4),NA())),NA())","v":135},1]
[{"$nulls":3},{"$f":"IFERROR(IF(INDEX(Régime_alimentaire[],FinRégime-DébutLigneRégime-J17,1)<>\"\",INDEX(Régime_alimentaire[],FinRégime-DébutLigneRégime-J17,1),\"\"),\"\")","v":"2017-05-12"},"VEN",{"$f":"IFERROR((IF(INDEX(Régime_alimentaire[],FinRégime-DébutLigneRégime-J17,1)<>\"\",INDEX(Régime_alimentaire[],FinRégime-DébutLigneRégime-J17,7),NA())),NA())","v":15},{"$f":"IFERROR((IF(INDEX(Régime_alimentaire[],FinRégime-DébutLigneRégime-J17,1)<>\"\",INDEX(Régime_alimentaire[],FinRégime-DébutLigneRégime-J17,6),NA())),NA())","v":5.43},{"$f":"IFERROR((IF(INDEX(Régime_alimentaire[],FinRégime-DébutLigneRégime-J17,1)<>\"\",INDEX(Régime_alimentaire[],FinRégime-DébutLigneRégime-J17,5),NA())),NA())","v":7},{"$f":"IFERROR((IF(INDEX(Régime_alimentaire[],FinRégime-DébutLigneRégime-J17,1)<>\"\",INDEX(Régime_alimentaire[],FinRégime-DébutLigneRégime-J17,4),NA())),NA())","v":184},0]
[{"$nulls":3},{"$f":"IFERROR(IF(INDEX(Régime_alimentaire[],FinRégime-DébutLigneRégime-J18,1)<>\"\",INDEX(Régime_alimentaire[],FinRégime-DébutLigneRégime-J18,1),\"\"),\"\")","v":"2017-05-14"},"DIM",{"$f":"IFERROR((IF(INDEX(Régime_alimentaire[],FinRégime-DébutLigneRégime-J18,1)<>\"\",INDEX(Régime_alimentaire[],FinRégime-DébutLigneRégime-J18,7),NA())),NA())","v":21},{"$f":"IFERROR((IF(INDEX(Régime_alimentaire[],FinRégime-DébutLigneRégime-J18,1)<>\"\",INDEX(Régime_alimentaire[],FinRégime-DébutLigneRégime-J18,6),NA())),NA())","v":13.5},{"$f":"IFERROR((IF(INDEX(Régime_alimentaire[],FinRégime-DébutLigneRégime-J18,1)<>\"\",INDEX(Régime_alimentaire[],FinRégime-DébutLigneRégime-J18,5),NA())),NA())","v":62},{"$f":"IFERROR((IF(INDEX(Régime_alimentaire[],FinRégime-DébutLigneRégime-J18,1)<>\"\",INDEX(Régime_alimentaire[],FinRégime-DébutLigneRégime-J18,4),NA())),NA())","v":477},-1]
[]
[null,"DONNÉES DU GRAPHIQUE D’ANALYSE D’EXERCICE"]
[]
[null,"Ligne de début",{"$f":"ROW(Exercice[[#Headers],[DATE]])+1","v":4},"DATE","JOUR","DURÉE (MINUTES)","CALORIES BRÛLÉES","Nombre"]
[null,"Dernière entrée des exercices",{"$f":"MATCH(9.99E+307,Exercice[DATE])+DébutLigneExercice-1","v":20},{"$f":"IFERROR(IF(INDEX(Exercice[],FinExercice-DébutLigneExercice-H23,1)<>\"\",INDEX(Exercice[],FinExercice-DébutLigneExercice-H23,1)),\"\")","v":"2017-05-29"},{"$f":"UPPER(TEXT(D23,\"jjj\"))","v":"LUN"},{"$f":"IFERROR((IF(INDEX(Exercice[],FinExercice-DébutLigneExercice-H23,1)<>\"\",INDEX(Exercice[],FinExercice-DébutLigneExercice-H23,2),0)),0)","v":20},{"$f":"IFERROR((IF(INDEX(Exercice[],FinExercice-DébutLigneExercice-H23,2)<>\"\",INDEX(Exercice[],FinExercice-DébutLigneExercice-H23,3),0)),0)","v":195},-1]
[{"$nulls":3},{"$f":"IFERROR(IF(INDEX(Exercice[],FinExercice-DébutLigneExercice-H24,1)<>\"\",INDEX(Exercice[],FinExercice-DébutLigneExercice-H24,1)),\"\")","v":"2017-05-28"},{"$f":"UPPER(TEXT(D24,\"jjj\"))","v":"DIM"},{"$f":"IFERROR((IF(INDEX(Exercice[],FinExercice-DébutLigneExercice-H24,1)<>\"\",INDEX(Exercice[],FinExercice-DébutLigneExercice-H24,2),0)),0)","v":25},{"$f":"IFERROR((IF(INDEX(Exercice[],FinExercice-DébutLigneExercice-H24,2)<>\"\",INDEX(Exercice[],FinExercice-DébutLigneExercice-H24,3),0)),0)","v":265},0]
[{"$nulls":3},{"$f":"IFERROR(IF(INDEX(Exercice[],FinExercice-DébutLigneExercice-H25,1)<>\"\",INDEX(Exercice[],FinExercice-DébutLigneExercice-H25,1)),\"\")","v":"2017-05-27"},"SAM",{"$f":"IFERROR((IF(INDEX(Exercice[],FinExercice-DébutLigneExercice-H25,1)<>\"\",INDEX(Exercice[],FinExercice-DébutLigneExercice-H25,2),0)),0)","v":40},{"$f":"IFERROR((IF(INDEX(Exercice[],FinExercice-DébutLigneExercice-H25,2)<>\"\",INDEX(Exercice[],FinExercice-DébutLigneExercice-H25,3),0)),0)","v":290},1]
[{"$nulls":3},{"$f":"IFERROR(IF(INDEX(Exercice[],FinExercice-DébutLigneExercice-H26,1)<>\"\",INDEX(Exercice[],FinExercice-DébutLigneExercice-H26,1)),\"\")","v":"2017-05-26"},"VEN",{"$f":"IFERROR((IF(INDEX(Exercice[],FinExercice-DébutLigneExercice-H26,1)<>\"\",INDEX(Exercice[],FinExercice-DébutLigneExercice-H26,2),0)),0)","v":35},{"$f":"IFERROR((IF(INDEX(Exercice[],FinExercice-DébutLigneExercice-H26,2)<>\"\",INDEX(Exercice[],FinExercice-DébutLigneExercice-H26,3),0)),0)","v":320},2]
[{"$nulls":3},{"$f":"IFERROR(IF(INDEX(Exercice[],FinExercice-DébutLigneExercice-H27,1)<>\"\",INDEX(Exercice[],FinExercice-DébutLigneExercice-H27,1)),\"\")","v":"2017-05-25"},"JEU",{"$f":"IFERROR((IF(INDEX(Exercice[],FinExercice-DébutLigneExercice-H27,1)<>\"\",INDEX(Exercice[],FinExercice-DébutLigneExercice-H27,2),0)),0)","v":45},{"$f":"IFERROR((IF(INDEX(Exercice[],FinExercice-DébutLigneExercice-H27,2)<>\"\",INDEX(Exercice[],FinExercice-DébutLigneExercice-H27,3),0)),0)","v":350},3]
[{"$nulls":3},{"$f":"IFERROR(IF(INDEX(Exercice[],FinExercice-DébutLigneExercice-H28,1)<>\"\",INDEX(Exercice[],FinExercice-DébutLigneExercice-H28,1)),\"\")","v":"2017-05-24"},"MER",{"$f":"IFERROR((IF(INDEX(Exercice[],FinExercice-DébutLigneExercice-H28,1)<>\"\",INDEX(Exercice[],FinExercice-DébutLigneExercice-H28,2),0)),0)","v":20},{"$f":"IFERROR((IF(INDEX(Exercice[],FinExercice-DébutLigneExercice-H28,2)<>\"\",INDEX(Exercice[],FinExercice-DébutLigneExercice-H28,3),0)),0)","v":295},4]
[{"$nulls":3},{"$f":"IFERROR(IF(INDEX(Exercice[],FinExercice-DébutLigneExercice-H29,1)<>\"\",INDEX(Exercice[],FinExercice-DébutLigneExercice-H29,1)),\"\")","v":"2017-05-23"},"MAR",{"$f":"IFERROR((IF(INDEX(Exercice[],FinExercice-DébutLigneExercice-H29,1)<>\"\",INDEX(Exercice[],FinExercice-DébutLigneExercice-H29,2),0)),0)","v":40},{"$f":"IFERROR((IF(INDEX(Exercice[],FinExercice-DébutLigneExercice-H29,2)<>\"\",INDEX(Exercice[],FinExercice-DébutLigneExercice-H29,3),0)),0)","v":270},5]
[{"$nulls":3},{"$f":"IFERROR(IF(INDEX(Exercice[],FinExercice-DébutLigneExercice-H30,1)<>\"\",INDEX(Exercice[],FinExercice-DébutLigneExercice-H30,1)),\"\")","v":"2017-05-22"},"LUN",{"$f":"IFERROR((IF(INDEX(Exercice[],FinExercice-DébutLigneExercice-H30,1)<>\"\",INDEX(Exercice[],FinExercice-DébutLigneExercice-H30,2),0)),0)","v":45},{"$f":"IFERROR((IF(INDEX(Exercice[],FinExercice-DébutLigneExercice-H30,2)<>\"\",INDEX(Exercice[],FinExercice-DébutLigneExercice-H30,3),0)),0)","v":325},6]
[{"$nulls":3},{"$f":"IFERROR(IF(INDEX(Exercice[],FinExercice-DébutLigneExercice-H31,1)<>\"\",INDEX(Exercice[],FinExercice-DébutLigneExercice-H31,1)),\"\")","v":"2017-05-21"},"DIM",{"$f":"IFERROR((IF(INDEX(Exercice[],FinExercice-DébutLigneExercice-H31,1)<>\"\",INDEX(Exercice[],FinExercice-DébutLigneExercice-H31,2),0)),0)","v":40},{"$f":"IFERROR((IF(INDEX(Exercice[],FinExercice-DébutLigneExercice-H31,2)<>\"\",INDEX(Exercice[],FinExercice-DébutLigneExercice-H31,3),0)),0)","v":175},7]
[{"$nulls":3},{"$f":"IFERROR(IF(INDEX(Exercice[],FinExercice-DébutLigneExercice-H32,1)<>\"\",INDEX(Exercice[],FinExercice-DébutLigneExercice-H32,1)),\"\")","v":"2017-05-20"},"SAM",{"$f":"IFERROR((IF(INDEX(Exercice[],FinExercice-DébutLigneExercice-H32,1)<>\"\",INDEX(Exercice[],FinExercice-DébutLigneExercice-H32,2),0)),0)","v":30},{"$f":"IFERROR((IF(INDEX(Exercice[],FinExercice-DébutLigneExercice-H32,2)<>\"\",INDEX(Exercice[],FinExercice-DébutLigneExercice-H32,3),0)),0)","v":335},8]
[{"$nulls":3},{"$f":"IFERROR(IF(INDEX(Exercice[],FinExercice-DébutLigneExercice-H33,1)<>\"\",INDEX(Exercice[],FinExercice-DébutLigneExercice-H33,1)),\"\")","v":"2017-05-19"},"VEN",{"$f":"IFERROR((IF(INDEX(Exercice[],FinExercice-DébutLigneExercice-H33,1)<>\"\",INDEX(Exercice[],FinExercice-DébutLigneExercice-H33,2),0)),0)","v":40},{"$f":"IFERROR((IF(INDEX(Exercice[],FinExercice-DébutLigneExercice-H33,2)<>\"\",INDEX(Exercice[],FinExercice-DébutLigneExercice-H33,3),0)),0)","v":205},9]
[{"$nulls":3},{"$f":"IFERROR(IF(INDEX(Exercice[],FinExercice-DébutLigneExercice-H34,1)<>\"\",INDEX(Exercice[],FinExercice-DébutLigneExercice-H34,1)),\"\")","v":"2017-05-18"},"JEU",{"$f":"IFERROR((IF(INDEX(Exercice[],FinExercice-DébutLigneExercice-H34,1)<>\"\",INDEX(Exercice[],FinExercice-DébutLigneExercice-H34,2),0)),0)","v":20},{"$f":"IFERROR((IF(INDEX(Exercice[],FinExercice-DébutLigneExercice-H34,2)<>\"\",INDEX(Exercice[],FinExercice-DébutLigneExercice-H34,3),0)),0)","v":285},10]
[{"$nulls":3},{"$f":"IFERROR(IF(INDEX(Exercice[],FinExercice-DébutLigneExercice-H35,1)<>\"\",INDEX(Exercice[],FinExercice-DébutLigneExercice-H35,1)),\"\")","v":"2017-05-17"},"MER",{"$f":"IFERROR((IF(INDEX(Exercice[],FinExercice-DébutLigneExercice-H35,1)<>\"\",INDEX(Exercice[],FinExercice-DébutLigneExercice-H35,2),0)),0)","v":25},{"$f":"IFERROR((IF(INDEX(Exercice[],FinExercice-DébutLigneExercice-H35,2)<>\"\",INDEX(Exercice[],FinExercice-DébutLigneExercice-H35,3),0)),0)","v":125},11]
[{"$nulls":3},{"$f":"IFERROR(IF(INDEX(Exercice[],FinExercice-DébutLigneExercice-H36,1)<>\"\",INDEX(Exercice[],FinExercice-DébutLigneExercice-H36,1)),\"\")","v":"2017-05-16"},"MAR",{"$f":"IFERROR((IF(INDEX(Exercice[],FinExercice-DébutLigneExercice-H36,1)<>\"\",INDEX(Exercice[],FinExercice-DébutLigneExercice-H36,2),0)),0)","v":30},{"$f":"IFERROR((IF(INDEX(Exercice[],FinExercice-DébutLigneExercice-H36,2)<>\"\",INDEX(Exercice[],FinExercice-DébutLigneExercice-H36,3),0)),0)","v":150},12]